Cogmind - Beta 13 @@@ ROGUE MODE // 2024.04.03 @ 23:30:53 Player: cinereoux Result: Destroyed by B-99 Colossus with Linear Accelerator Performance ------------- Evolutions (9) 4500 Regions Visited (21) 4200 Robots Destroyed (166) 830 Value Destroyed (5983) 5983 Prototype IDs (40) 800 Alien Tech Used (8) 1600 Bonus (10055) 10055 TOTAL SCORE: 27968 Bonus ------- High Alert Combat Kills 61 Follower Combat Kills 286 Met Zhirov 300 Met Warlord at Base 500 MAIN.C Attacked Warlord 500 Warlord Defense Kills 1910 Used Core Reset Matrix 3000 Met Warlord at Research 2000 Met Sigix 2000 Friendly Fire -502 Cogmind --------- Core Integrity 0/1600 Matter 224/300 Energy 99/100 System Corruption 0% Temperature Cool (0) Movement Core (50) Location -1/Access Parts ------- > --- POWER (3) -------- (None) > --- PROPULSION (9) --- (None) > --- UTILITY (10) ----- System Shield > --- WEAPON (3) ------- (None) > --- INVENTORY (5) ---- Enhanced Force Lance Sigix Containment Pod Sigix Containment Pod Peak State ------------ > --- POWER ------------ Light Antimatter Reactor Light Quantum Reactor > --- PROPULSION ------- Diametric Drive Diametric Drive Diametric Drive Diametric Drive Electron Diverter Impulse Thruster Array > --- UTILITY ---------- Medium Storage Unit Gravity Neutralizer Advanced Sensor Array Advanced Signal Interpreter Advanced Targeting Computer Advanced Reaction Control System Improved Phase Shifter Layered Light Armor Plating Phase Armor > --- WEAPON ----------- Phasing Sabre > --- INVENTORY -------- Light Quantum Reactor Biometal Medium Treads Biometal Medium Treads Biometal Medium Treads Biometal Medium Treads Hardened Heavy Armor Plating Medium Reflective Plating Experimental Thermal Shield Quantum Rifle [Rating: 152] Favorites ----------- Power Light Angular Momentum Engine Engine Light Angular Momentum Engine Power Core Neutrino Core Reactor Fusion Reactor Propulsion Armored Wheel Treads Improved Medium Treads Leg Myomer Leg Wheel Armored Wheel Flight Unit Diametric Drive Utility Huge Storage Unit Device Improved Terrain Scanner Storage Huge Storage Unit Processor Advanced Terrain Scan Processor Hackware Advanced Hacking Suite Protection Light Armor Plating Artifact Phase Armor Weapon Gauss Rifle Energy Gun Cooled Pulse Rifle Energy Cannon Advanced Beam Cannon Ballistic Gun Gauss Rifle Ballistic Cannon Hypervelocity Mass Driver Launcher Rocket Launcher Special Weapon Mining Laser Slashing Weapon Phasing Sabre Piercing Weapon Enhanced Force Lance Build | -11 -10 -10 -9 -9 -8 -7 -6 -5 -5 -5 -5 -4 -4 -4 -4 -4 -3 -3 -2 -2 -1 ------- Run | Yrd Mat Min Mat Sto Mat Fac Fac Fac Upp Upp Zhi Pro Fac Upp Upp War Pro Res Res Qua Acc Slots Evolved 18 | . . . 2 . 2 2 2 2 . . . . 2 . . . . 2 2 . 2 Power 2 | . . . . . . 1 . 1 . . . . . . . . . . . . . Propulsion 7 | . . . . . . . . 1 . . . . . . . . . 2 2 . 2 Utility 8 | . . . 2 . 1 1 2 . . . . . 2 . . . . . . . . Weapon 1 | . . . . . 1 . . . . . . . . . . . . . . . . Parts Attached 328 | 7 11 9 13 9 22 15 12 24 12 3 12 8 19 9 14 37 14 44 17 8 9 Power 38 | 1 1 1 1 1 3 1 . 8 . . 1 . 4 . . 4 2 7 1 2 . Engine 11 | 1 1 1 1 1 1 1 . 3 . . . . 1 . . . . . . . . Core 12 | . . . . . 2 . . 5 . . . . 2 . . 2 . 1 . . . Reactor 15 | . . . . . . . . . . . 1 . 1 . . 2 2 6 1 2 . Propulsion 47 | 2 3 2 3 . 3 2 . 3 . . 1 . 1 . . 6 2 12 5 1 1 Treads 7 | . 1 1 . . . . . . . . . . . . . 2 . 3 . . . Leg 11 | . . . . . . . . . . . . . . . . 2 2 7 . . . Wheel 20 | 2 2 1 3 . 3 2 . 3 . . 1 . 1 . . 2 . . . . . Hover . | . . . . . . . . . . . . . . . . . . . . . . Flight 9 | . . . . . . . . . . . . . . . . . . 2 5 1 1 Utility 133 | 2 3 1 4 2 5 7 7 7 5 1 6 4 13 6 9 14 7 11 11 5 3 Device 66 | . 1 . 2 . 1 5 4 4 3 . 4 4 7 6 5 1 5 7 4 1 2 Storage 6 | 2 2 . 1 . . . . . . . . . . . . . . . 1 . . Processor 10 | . . . . . 1 1 1 . . 1 . . 1 . . . . 3 1 1 . Hackware 3 | . . . . . . . . . . . . . 1 . . . . 1 . . 1 Protection 46 | . . 1 1 2 3 1 2 3 2 . 2 . 4 . 4 13 2 . 5 1 . Artifact 2 | . . . . . . . . . . . . . . . . . . . . 2 . Weapon 110 | 2 4 5 5 6 11 5 5 6 7 2 4 4 1 3 5 13 3 14 . . 5 Energy Gun 29 | 2 2 4 5 3 2 2 3 5 . . . . . . . . 1 . . . . Energy Cannon 6 | . . . . 1 1 . . . 1 . . . . . . . . . . . 3 Ballistic Gun 40 | . . . . 2 5 2 1 1 4 1 3 2 1 2 1 9 1 5 . . . Ballistic Cannon 5 | . . . . . . . . . . . . . . . 1 . . 4 . . . Launcher 18 | . . 1 . . 3 1 1 . 2 1 . . . . 3 4 . 2 . . . Special Weapon 2 | . 2 . . . . . . . . . . . . . . . . . . . . Impact Weapon . | . . . . . . . . . . . . . . . . . . . . . . Slashing Weapon 8 | . . . . . . . . . . . 1 2 . 1 . . 1 3 . . . Piercing Weapon 2 | . . . . . . . . . . . . . . . . . . . . . 2 Special Melee Weapon . | . . . . . . . . . . . . . . . . . . . . . . Unidentified Prototypes 24 | . . . 3 3 3 2 . . 1 . 5 . . . . . . . 3 4 . Corrupted Parts 4 | . . . . . . . . . . . . . . . . 1 3 . . . . System Corruption 25 | . . . . . . . . . . . . . . . . 3 22 . . . . Parts Lost 71 | . 1 5 1 . . . 3 . 1 . . . 2 . 3 15 4 22 . 4 10 Power 11 | . . 1 . . . . . . . . . . . . . 2 1 6 . . 1 Propulsion 18 | . 1 1 . . . . . . . . . . . . . 3 1 6 . 2 4 Utility 28 | . . . . . . . 1 . 1 . . . 2 . 3 9 2 4 . 1 5 Weapon 14 | . . 3 1 . . . 2 . . . . . . . . 1 . 6 . 1 . Highest Loss Streak 12 | . 1 5 1 . . . 2 . 1 . . . 2 . 2 12 4 6 . 4 7 To Critical Strikes 1 | . . . . . . . . . . . . . . . . . . 1 . . . Average Slot Usage (%) 92 | . 99 100 98 99 100 100 99 99 100 100 83 100 99 100 95 90 96 82 44 71 28 Engine 6 | . 14 14 11 11 3 15 13 7 11 11 11 11 6 . . . . . . . . Core 2 | . . . . . 5 . . 8 5 5 3 . 2 5 5 3 4 . . . . Reactor 3 | . . . . . . . . . . . 1 5 6 10 10 11 10 11 5 7 1 Leg 1 | . . . . . . . . . . . . . . . . . 2 12 . . . Wheel 13 | . 27 26 22 22 18 15 13 16 17 17 17 17 15 15 15 11 5 1 . . . Flight 1 | . . . . . . . . . . . . . . . . . . . 18 25 8 Device 15 | . 13 11 22 22 18 15 18 16 16 17 15 17 15 15 20 18 13 13 5 15 2 Storage 6 | . 14 14 11 11 9 7 6 5 5 5 5 5 5 5 5 5 5 3 2 4 3 Processor 12 | . . . . . 8 9 20 17 17 17 17 17 19 15 15 15 15 15 6 8 7 Protection 6 | . . 2 11 10 9 12 7 4 5 5 5 5 7 10 7 7 15 4 . 5 1 Energy Gun 6 | . 27 25 20 18 2 7 10 10 8 . . . . . . . . . . . . Ballistic Gun 9 | . . . . 3 22 14 8 4 7 17 1 16 15 15 8 10 14 9 . . . Naked Turns 47 | . . . . . . . . . . . . . . . . . . 47 . . . Heaviest Build 169 | 17 49 53 98 101 106 114 117 136 134 133 133 135 148 152 164 169 160 158 51 61 42 Greatest Support 118 | 20 20 26 26 26 28 24 24 36 36 36 36 36 40 40 40 40 12 118 52 64 41 Greatest Overweight (x) 13 | . 2 2 3 3 4 4 4 5 3 3 3 3 4 3 4 13 13 12 . . 2 Average Overweight (x) 2 | . 1 1 2 3 3 4 4 3 3 3 3 3 3 3 3 4 12 2 . . . Largest Inventory Capacity 25 | 8 20 20 25 25 25 25 25 25 25 25 25 25 25 25 25 25 25 25 10 10 10 Average Capacity 22 | 7 17 20 23 25 25 25 25 25 25 25 25 25 25 25 25 25 25 22 8 10 8 Most Carried 25 | 8 20 19 25 25 25 25 25 25 25 25 25 25 25 25 25 25 21 24 10 10 10 Average Carried 21 | 5 13 17 21 24 24 24 24 24 24 25 24 25 24 24 24 22 19 19 6 9 7 Final Capacity 25 | 8 20 20 25 25 25 25 25 25 25 25 25 25 25 25 25 25 25 5 10 10 5 Final Carried 25 | 7 19 19 25 25 25 25 24 25 25 25 25 25 25 25 25 22 17 3 10 9 5 Class Distribution -------------------- 34% | Skirmisher 15% | Mutant 10% | Scavenger-Tank 8% | Scavenger-Skirmisher 7% | Scavenger-Mutant 7% | Tank 6% | Scavenger-Gunner 4% | Sprinter Dominant Class ---------------- Mutant | -10/Materials Mutant | -10/Mines Scavenger-Mutant | -9/Materials Scavenger-Mutant | -9/Storage Skirmisher | -8/Materials Tank | -7/Factory Scavenger-Skirmisher | -6/Factory Skirmisher | -5/Factory Skirmisher | -5/Upper Caves Skirmisher | -5/Upper Caves Mutant | -5/Zhirov Skirmisher | -4/Proximity Caves Skirmisher | -4/Factory Skirmisher | -4/Upper Caves Skirmisher | -4/Upper Caves Tank | -4/Warlord Scavenger-Tank | -3/Proximity Caves Scavenger-Gunner | -3/Research Sprinter | -2/Research Sprinter | -2/Quarantine Mutant | -1/Access Resources | -11 -10 -10 -9 -9 -8 -7 -6 -5 -5 -5 -5 -4 -4 -4 -4 -4 -3 -3 -2 -2 -1 ----------- Run | Yrd Mat Min Mat Sto Mat Fac Fac Fac Upp Upp Zhi Pro Fac Upp Upp War Pro Res Res Qua Acc Matter Collected 6709 | 270 335 76 150 114 564 326 163 371 250 88 147 92 541 85 511 696 269 1112 445 70 34 Remotely 866 | . . . . . . . . . . . . . . . . 178 . 688 . . . Salvage Created 8027 | 129 284 109 774 807 659 411 54 343 316 . 92 92 574 100 844 777 160 1198 304 . . Parts 394 | 7 19 6 50 40 48 19 5 16 6 . 1 6 14 4 31 24 4 82 12 . . Haulers Intercepted 11 | . 1 . 1 4 5 . . . . . . . . . . . . . . . . Recyclers Shooed 9 | 1 . . . . . . . 1 3 . . . 3 . . . . . 1 . . Parts Field Recycled . | . . . . . . . . . . . . . . . . . . . . . . Retrieved Matter . | . . . . . . . . . . . . . . . . . . . . . . Parts Self-Destructed 45 | . . . . . . . . . 5 . . 3 . . 33 . 4 . . . . Prevented 1 | . . . . . . . . . 1 . . . . . . . . . . . . Kills | -11 -10 -10 -9 -9 -8 -7 -6 -5 -5 -5 -5 -4 -4 -4 -4 -4 -3 -3 -2 -2 -1 ------- Run | Yrd Mat Min Mat Sto Mat Fac Fac Fac Upp Upp Zhi Pro Fac Upp Upp War Pro Res Res Qua Acc Combat Hostiles Destroyed 110 | . 7 3 12 8 10 6 1 2 4 . . 1 1 1 14 15 2 23 . . . Guns 75 | . 7 2 9 6 8 6 1 2 3 . . 1 1 1 11 6 2 9 . . . Cannons 6 | . . . . . . . . . . . . . . . . . . 6 . . . AOE 27 | . . 1 2 1 2 . . . 1 . . . . . 3 9 . 8 . . . Classes Destroyed 19 | 2 4 1 4 . 1 2 . . . . . 1 . 1 1 2 . . . . . Worker 14 | . . . . . 5 2 . 5 . . . . . . . . . 1 1 . . Builder 4 | . . . 3 . . . 1 . . . . . . . . . . . . . . Tunneler 4 | 1 . . . . . . 1 . . . . . . . . . . 1 1 . . Hauler 11 | . 1 . 1 4 5 . . . . . . . . . . . . . . . . Recycler 12 | 1 . . 2 1 . 1 . 1 . . . . 4 . . . . . 2 . . Operator 1 | . . . 1 . . . . . . . . . . . . . . . . . . Watcher 8 | . 1 . 2 2 2 . . . . . . . . . . . . 1 . . . Swarmer 33 | . 3 . 6 2 6 1 1 . 2 . . . . . 2 2 . 8 . . . Grunt 40 | . 4 2 3 4 4 2 . . . . . . . . 7 7 . 7 . . . Brawler 2 | . . . 1 . . . . . . . . . . . 1 . . . . . . Duelist 1 | . . . . . . . . . . . . . . . 1 . . . . . . Protector 1 | . . . . . . . . . . . . . . . . 1 . . . . . Sentry 9 | . . . 2 3 . 1 . . 1 . . . 1 . 1 . . . . . . Demolisher 1 | . . 1 . . . . . . . . . . . . . . . . . . . Specialist 1 | . . . . . . . . . . . . . . . . 1 . . . . . Hunter 5 | . . . . . . 1 . . 1 . . . . . . . 2 1 . . . Programmer 17 | . . . . . . 1 . 2 . . . 1 . . 2 4 . 7 . . . Packrat 2 | . . . . . . . . . 2 . . . . . . . . . . . . Samaritan 1 | . . . . . . . . . . . . 1 . . . . . . . . . Thug 1 | . . . . . . . . . . . . . . . . 1 . . . . . Mutant 1 | . . . . . . . . . . . . . . 1 . . . . . . . Best Kill Streak 12 | 2 2 2 8 3 8 3 2 2 3 . . 1 2 1 12 7 2 7 3 . . Combat Bots Only 12 | . 2 2 6 2 8 3 1 2 3 . . 1 1 1 12 7 2 6 . . . Max Kills in Single Turn 6 | 1 1 1 3 2 2 1 1 1 1 . . 1 1 1 3 6 1 2 1 . . Gunslinging 1 | . . . 1 1 1 . . . . . . . . . . . . . . . . Exploded 5 | . . 1 2 1 1 . . . 1 . . . . . 3 5 . 2 . . . Melee . | . . . . . . . . . . . . . . . . . . . . . . Uniques/NPCs Destroyed . | . . . . . . . . . . . . . . . . . . . . . . Combat | -11 -10 -10 -9 -9 -8 -7 -6 -5 -5 -5 -5 -4 -4 -4 -4 -4 -3 -3 -2 -2 -1 -------- Run | Yrd Mat Min Mat Sto Mat Fac Fac Fac Upp Upp Zhi Pro Fac Upp Upp War Pro Res Res Qua Acc Hostile Shots Fired 1024 | . 23 26 29 26 36 42 3 4 32 . . 8 10 4 88 144 72 263 7 48 159 Missed 365 | . 7 7 8 3 8 12 2 1 18 . . 2 3 1 32 39 22 98 4 34 64 Damage Taken 12419 | . 252 442 177 380 282 436 492 57 293 . . 121 161 37 755 2060 624 3146 59 550 2095 Core 2803 | . 53 158 21 74 . 18 167 . 13 . . . . . 31 90 64 765 20 18 1311 Absorbed by Shields 406 | . . . . . . . . . . . . . . . 247 159 . . . . . Redirected to Shielding 86 | . . . . . . . . . . . . . . . . . 49 37 . . . Ignored by Resistances 896 | . . . . . . 35 . 3 . . . . . 12 150 289 . 407 . . . Regen/Repaired (Parts) 146 | . . . . . . . . . . . . . . . . 146 . . . . . Core Remaining (%) 77 | 100 . 15 . 76 100 97 80 . . . . 92 . . . . 83 41 . 88 . Volleys Fired 333 | 3 24 12 27 26 41 25 5 11 17 1 . 5 13 1 23 24 9 63 . . 3 Largest 3 | 2 2 2 2 2 3 3 3 3 3 1 . 3 3 3 3 3 3 3 . . 1 Hottest 198 | 80 100 90 100 100 114 112 109 68 68 45 . 91 98 103 103 103 91 198 . . 120 Shots Fired 822 | 6 46 23 54 52 115 66 12 25 42 2 . 15 39 3 65 61 28 165 . . 3 Gun 743 | 6 44 22 54 52 105 66 10 25 40 1 . 15 39 3 58 55 28 120 . . . Cannon 49 | . . . . . 6 . . . . . . . . . 5 . . 35 . . 3 Launcher 28 | . . 1 . . 4 . 2 . 2 1 . . . . 2 6 . 10 . . . Special 2 | . 2 . . . . . . . . . . . . . . . . . . . . Kinetic 522 | . . . . 8 100 38 4 3 10 1 . 15 39 3 63 55 28 155 . . . Thermal 174 | 6 46 22 . . 11 28 6 22 30 . . . . . . . . . . . 3 Explosive 28 | . . 1 . . 4 . 2 . 2 1 . . . . 2 6 . 10 . . . Electromagnetic 98 | . . . 54 44 . . . . . . . . . . . . . . . . . Robot Hit Streak 22 | 3 8 4 14 9 12 16 11 15 22 . . 21 9 10 12 15 9 10 . . . Robot Miss Streak 6 | 1 4 4 6 4 4 2 1 1 2 . . 2 2 . 3 2 1 5 . . . Penetration Max 2 | . . . . . . . . . . . . . . 1 2 2 . 1 . . . Secondary Targets 10 | . . . 1 1 1 1 . . 1 . . . . . 2 1 . 2 . . . Max Gunslinging Chain 1 | . . . 1 1 1 1 . . 1 . . . . . 1 1 . 1 . . . Shots Hit Robots 558 | 4 26 11 44 42 70 46 5 20 36 . 1 10 30 1 43 47 22 94 6 . . Core Hits 362 | 3 16 9 25 23 32 17 3 11 15 . 1 5 13 2 40 78 9 58 2 . . Critical Kills 22 | . . . . . . 2 . 2 . . . . . 1 4 4 . 9 . . . Critical Parts Destroyed 26 | . . . . . . . . . . . . . 3 1 9 2 . 11 . . . Critical Strikes 54 | . 1 . . . . 2 . 2 3 . . . 3 2 14 7 . 20 . . . Burn 4 | . 1 . . . . . . . 3 . . . . . . . . . . . . Destroy 50 | . . . . . . 2 . 2 . . . . 3 2 14 7 . 20 . . . Melee Attacks 37 | . . . . . . . . . . . 1 7 . 1 . . 1 6 8 11 2 Impact . | . . . . . . . . . . . . . . . . . . . . . . Slashing 35 | . . . . . . . . . . . 1 7 . 1 . . 1 6 8 11 . Piercing 2 | . . . . . . . . . . . . . . . . . . . . . 2 Sneak Attacks 4 | . . . . . . . . . . . . . . . . . . . 4 . . Combat Hostiles . | . . . . . . . . . . . . . . . . . . . . . . Follow-up Attacks . | . . . . . . . . . . . . . . . . . . . . . . Damage Inflicted 15885 | 41 315 205 915 931 1347 826 159 400 741 . 94 224 692 77 1776 3049 347 3308 438 . . Guns 10753 | 41 315 126 776 843 1117 826 98 400 641 . . 224 692 77 1097 1198 347 1935 . . . Cannons 608 | . . . . . 40 . . . . . . . . . 76 . . 492 . . . Explosions 3986 | . . 79 139 82 190 . 61 . 100 . . . . . 603 1851 . 881 . . . Melee 532 | . . . . . . . . . . . 94 . . . . . . . 438 . . Ramming 6 | . . . . 6 . . . . . . . . . . . . . . . . . Kinetic 7985 | . . . . 99 1037 475 60 47 129 . . 224 692 77 1173 1198 347 2427 . . . Thermal 2185 | 41 315 173 139 82 120 351 99 353 512 . . . . . . . . . . . . Explosive 3657 | . . 32 . . 190 . . . 100 . . . . . 603 1851 . 881 . . . Electromagnetic 1520 | . . . 776 744 . . . . . . . . . . . . . . . . . Impact . | . . . . . . . . . . . . . . . . . . . . . . Slashing 532 | . . . . . . . . . . . 94 . . . . . . . 438 . . Piercing . | . . . . . . . . . . . . . . . . . . . . . . Highest Corruption 32 | . . . . . . 2 5 1 1 1 1 4 . . 2 10 32 12 . 8 . Average Corruption 3 | . . . . . . 1 4 1 1 1 1 3 . . 2 4 10 5 . 8 . Corruption Purged 5 | . . . . . . . 5 . . . . . . . . . . . . . . Corruption Blocked 9 | . . . . . . . . . . . . . . . . . . . 9 . . Effects 89 | . . . . . . 4 5 3 3 1 3 14 . . 3 9 19 23 . 2 . Message Errors 19 | . . . . . . . 2 . 1 . . 6 . . . 2 2 6 . . . Matter Fused 24 | . . . . . . 1 1 2 2 . 1 1 . . . 1 7 8 . . . Heat Flow Errors 4 | . . . . . . 1 . . . . . 1 . . . 1 1 . . . . Energy Discharges 13 | . . . . . . . 1 . . . 1 3 . . 1 2 2 2 . 1 . Parts Rejected 1 | . . . . . . . . . . . . . . . . . . . . 1 . Parts Fused 1 | . . . . . . . . . . . . . . . . . . 1 . . . Data Loss (minor) 9 | . . . . . . 2 . 1 . . . 1 . . 1 1 1 2 . . . Data Loss (major) 3 | . . . . . . . . . . . 1 . . . . 1 1 . . . . Misfires 9 | . . . . . . . 1 . . 1 . 1 . . 1 1 3 1 . . . Alerts 1 | . . . . . . . . . . . . . . . . . . 1 . . . Misdirections 1 | . . . . . . . . . . . . . . . . . . 1 . . . Weapon Failures 4 | . . . . . . . . . . . . 1 . . . . 2 1 . . . Overload Shots . | . . . . . . . . . . . . . . . . . . . . . . Overflow Damage 296 | . . . 12 . 10 . 100 . 6 . . . . . . . . 30 138 . . Projectiles 30 | . . . . . . . . . . . . . . . . . . 30 . . . Explosions 128 | . . . 12 . 10 . 100 . 6 . . . . . . . . . . . . Melee 138 | . . . . . . . . . . . . . . . . . . . 138 . . Knockbacks 7 | . . . . . . . . . . . . . . . 1 . . 6 . . . Impact . | . . . . . . . . . . . . . . . . . . . . . . Kinetic 7 | . . . . . . . . . . . . . . . 1 . . 6 . . . Secondary . | . . . . . . . . . . . . . . . . . . . . . . Self-Inflicted Damage 529 | . . . 4 3 . . 422 . 20 . . . . . . 80 . . . . . Shots 10 | . . . 1 . . . 4 . 1 . . . . . . 4 . . . . . Rammed 1 | . . . . 1 . . . . . . . . . . . . . . . . . Targets Rammed 1 | . . . . 1 . . . . . . . . . . . . . . . . . Kicked . | . . . . . . . . . . . . . . . . . . . . . . Crushed . | . . . . . . . . . . . . . . . . . . . . . . Highest Temperature 286 | 36 39 100 10 13 12 170 1 . . . . 59 . . 2 286 229 109 96 . 28 Average Temperature 40 | 17 20 50 6 6 5 61 1 . . . . 59 . . 2 47 97 33 18 . 19 Received Heat Transfer 1317 | . 99 150 24 126 81 54 . . 18 . . . 18 49 95 120 . 456 9 9 9 Siege Activations . | . . . . . . . . . . . . . . . . . . . . . . Robots Corrupted 3 | . . . 2 1 . . . . . . . . . . . . . . . . . Combat Hostiles 2 | . . . 1 1 . . . . . . . . . . . . . . . . . Parts Fried 10 | . . . 5 5 . . . . . . . . . . . . . . . . . Impact Corruptions . | . . . . . . . . . . . . . . . . . . . . . . Robots Melted . | . . . . . . . . . . . . . . . . . . . . . . Combat Hostiles . | . . . . . . . . . . . . . . . . . . . . . . Parts Melted 12 | 1 3 . . 1 1 . . 5 1 . . . . . . . . . . . . Heat Transferred 4330 | 100 857 361 50 100 222 629 124 666 1221 . . . . . . . . . . . . Parts Sabotaged 8 | . . . . . . . . . . . . . . . . 8 . . . . . Parts Stolen . | . . . . . . . . . . . . . . . . . . . . . . Parts Stripped . | . . . . . . . . . . . . . . . . . . . . . . Power Chain Reactions 5 | . . . 3 2 . . . . . . . . . . . . . . . . . Alert | -11 -10 -10 -9 -9 -8 -7 -6 -5 -5 -5 -5 -4 -4 -4 -4 -4 -3 -3 -2 -2 -1 ------- Run | Yrd Mat Min Mat Sto Mat Fac Fac Fac Upp Upp Zhi Pro Fac Upp Upp War Pro Res Res Qua Acc Peak Influence 705 | 10 192 139 452 602 409 197 195 76 . . . . 71 . . . . 342 394 705 517 Initial 422 | . 6 52 53 108 247 121 26 16 . . . . . . . . . . 192 221 422 Average 160 | 2 69 59 221 400 300 78 66 21 . . . . 22 . . . . 104 292 526 429 Maximum Alert Level 3 | . . . 2 2 2 . . . . . . . . . . . . 1 1 3 2 Low Security (%) 69 | 100 100 100 35 25 15 100 100 100 . . . . 100 . . . . 85 15 . . Level 1 19 | . . . 58 16 76 . . . . . . . . . . . . 14 84 19 21 Level 2 11 | . . . 6 57 8 . . . . . . . . . . . . . . 77 78 Level 3 . | . . . . . . . . . . . . . . . . . . . . 3 . Level 4 . | . . . . . . . . . . . . . . . . . . . . . . Level 5 . | . . . . . . . . . . . . . . . . . . . . . . High Security . | . . . . . . . . . . . . . . . . . . . . . . Max Security . | . . . . . . . . . . . . . . . . . . . . . . Squads Dispatched 26 | . 2 . 1 2 3 1 1 1 . . . . 1 . 1 . . 6 2 2 3 Investigation 3 | . . . . . . . . . . . . . . . . . . . 1 1 1 Extermination 9 | . . . . . . 1 1 1 . . . . 1 . . . . 4 . . 1 Reinforcement 13 | . 2 . 1 2 3 . . . . . . . . . . . . 2 1 1 1 Assault 1 | . . . . . . . . . . . . . . . 1 . . . . . . Garrison . | . . . . . . . . . . . . . . . . . . . . . . Intercept . | . . . . . . . . . . . . . . . . . . . . . . Searches Triggered 1 | . . . . . . . . . . . . . . . . . . . . . 1 Construction Impeded 1 | . . . . . . . . . . . . . . . . . . 1 . . . Haulers Reinforced . | . . . . . . . . . . . . . . . . . . . . . . Active Scanning Responses . | . . . . . . . . . . . . . . . . . . . . . . Cargo Convoy Interrupts 1 | . . . . . . 1 . . . . . . . . . . . . . . . Stealth | -11 -10 -10 -9 -9 -8 -7 -6 -5 -5 -5 -5 -4 -4 -4 -4 -4 -3 -3 -2 -2 -1 --------- Run | Yrd Mat Min Mat Sto Mat Fac Fac Fac Upp Upp Zhi Pro Fac Upp Upp War Pro Res Res Qua Acc Distress Signals 18 | . . . 1 3 2 . . . . . . . 1 . . 1 . 3 4 1 2 Communications Jammed . | . . . . . . . . . . . . . . . . . . . . . . Distress Signals . | . . . . . . . . . . . . . . . . . . . . . . Times Spotted 294 | . 19 6 17 25 22 10 2 2 4 . . 1 2 1 21 52 2 41 8 37 22 Peak Tracking Total 12 | . 3 3 7 7 5 3 3 1 3 . . 1 2 1 9 12 2 9 7 11 10 Tactical Retreats 16 | . 1 . . . . . . . . . . . 1 . 1 . . 2 3 5 3 Traps | -11 -10 -10 -9 -9 -8 -7 -6 -5 -5 -5 -5 -4 -4 -4 -4 -4 -3 -3 -2 -2 -1 ------- Run | Yrd Mat Min Mat Sto Mat Fac Fac Fac Upp Upp Zhi Pro Fac Upp Upp War Pro Res Res Qua Acc Traps Triggered 19 | . 2 . . 3 . 4 2 4 . . . . . . . 1 . 2 . 1 . Indirectly . | . . . . . . . . . . . . . . . . . . . . . . Trap Hack Attempts . | . . . . . . . . . . . . . . . . . . . . . . Triggered . | . . . . . . . . . . . . . . . . . . . . . . Disarmed 4 | . 4 . . . . . . . . . . . . . . . . . . . . Reprogrammed . | . . . . . . . . . . . . . . . . . . . . . . Reused . | . . . . . . . . . . . . . . . . . . . . . . Traps Extracted . | . . . . . . . . . . . . . . . . . . . . . . Installed . | . . . . . . . . . . . . . . . . . . . . . . Triggered 6 | . . . . . . 1 . . 1 . . . . . . 4 . . . . . Machines | -11 -10 -10 -9 -9 -8 -7 -6 -5 -5 -5 -5 -4 -4 -4 -4 -4 -3 -3 -2 -2 -1 ---------- Run | Yrd Mat Min Mat Sto Mat Fac Fac Fac Upp Upp Zhi Pro Fac Upp Upp War Pro Res Res Qua Acc Machines Disabled 23 | . . 2 1 4 1 . 7 . . . . . . 1 . . . 1 . 5 1 Max in Single Turn 5 | . . 2 1 2 1 . 5 . . . . . . 1 . . . 1 . 1 1 Machines Repaired . | . . . . . . . . . . . . . . . . . . . . . . Machines Dismantled . | . . . . . . . . . . . . . . . . . . . . . . Machines Sabotaged . | . . . . . . . . . . . . . . . . . . . . . . Overloaded Fab Kills . | . . . . . . . . . . . . . . . . . . . . . . Hacking | -11 -10 -10 -9 -9 -8 -7 -6 -5 -5 -5 -5 -4 -4 -4 -4 -4 -3 -3 -2 -2 -1 --------- Run | Yrd Mat Min Mat Sto Mat Fac Fac Fac Upp Upp Zhi Pro Fac Upp Upp War Pro Res Res Qua Acc Machines Accessed 48 | . 6 . . 7 4 1 2 1 1 1 5 . 1 . . 1 . 2 3 10 3 Terminals 35 | . 6 . . 6 3 . 1 . . 1 . . 1 . . . . 2 2 10 3 Fabricators 1 | . . . . . . . . 1 . . . . . . . . . . . . . Repair Stations 1 | . . . . . . 1 . . . . . . . . . . . . . . . Recycling Units 1 | . . . . 1 . . . . . . . . . . . . . . . . . Scanalyzers 1 | . . . . . 1 . . . . . . . . . . . . . . . . Garrison Access 2 | . . . . . . . 1 . . . . . . . . . . . 1 . . Total Hacks 122 | . 24 . . 18 9 3 4 4 1 1 18 . 3 . . 4 . 4 8 15 6 Successful 60 | . 15 . . 6 4 . . . 1 1 18 . 2 . . 4 . 1 3 5 . Failed 62 | . 9 . . 12 5 3 4 4 . . . . 1 . . . . 3 5 10 6 Catastrophic 13 | . . . . 1 2 1 1 . . . . . . . . . . . 2 2 4 Database Lockouts . | . . . . . . . . . . . . . . . . . . . . . . Manual 25 | . 14 . . 3 . . . . . . . . 1 . . . . . 2 5 . Terminals 81 | . 24 . . 15 5 . 2 . . 1 . . 3 . . . . 4 6 15 6 Fabricators 4 | . . . . . . . . 4 . . . . . . . . . . . . . Repair Stations 3 | . . . . . . 3 . . . . . . . . . . . . . . . Recycling Units 3 | . . . . 3 . . . . . . . . . . . . . . . . . Scanalyzers 4 | . . . . . 4 . . . . . . . . . . . . . . . . Garrison Access 4 | . . . . . . . 2 . . . . . . . . . . . 2 . . Terminal Hacks 46 | . 10 . . 3 . . . . 1 1 18 . 1 . . 4 . 1 2 5 . Record 10 | . . . . . . . . . . 1 6 . . . . . . . 1 2 . Part Schematic 4 | . . . . . . . . . . . 4 . . . . . . . . . . Robot Analysis 6 | . 2 . . . . . . . . . 4 . . . . . . . . . . Prototype ID Bank 9 | . . . . . . . . . . . 4 . . . . 4 . . . 1 . Open Door 3 | . . . . 2 . . . . 1 . . . . . . . . . . . . Level Access Points 1 | . 1 . . . . . . . . . . . . . . . . . . . . Branch Access Points 1 | . 1 . . . . . . . . . . . . . . . . . . . . Emergency Access Points 2 | . . . . . . . . . . . . . . . . . . . 1 1 . Locate Traps 1 | . 1 . . . . . . . . . . . . . . . . . . . . Disarm Traps 1 | . 1 . . . . . . . . . . . . . . . . . . . . Patrol Status 1 | . 1 . . . . . . . . . . . . . . . . . . . . Investigation Status 1 | . 1 . . . . . . . . . . . . . . . . . . . . Recall Investigation 1 | . . . . . . . . . . . . . . . . . . . . 1 . Hauler Manifests 3 | . 1 . . 1 . . . . . . . . 1 . . . . . . . . Zone Layout 2 | . 1 . . . . . . . . . . . . . . . . 1 . . . Fabricator Hacks . | . . . . . . . . . . . . . . . . . . . . . . Repair Station Hacks . | . . . . . . . . . . . . . . . . . . . . . . Recycling Unit Hacks 2 | . . . . 2 . . . . . . . . . . . . . . . . . Report Inventory 1 | . . . . 1 . . . . . . . . . . . . . . . . . Retrieve Components 1 | . . . . 1 . . . . . . . . . . . . . . . . . Scanalyzer 4 | . . . . . 4 . . . . . . . . . . . . . . . . Insert Component 2 | . . . . . 2 . . . . . . . . . . . . . . . . Analyze 2 | . . . . . 2 . . . . . . . . . . . . . . . . Garrison Access Hacks . | . . . . . . . . . . . . . . . . . . . . . . Unauthorized Hacks 8 | . 5 . . 1 . . . . . . . . 1 . . . . . 1 . . Terminals 8 | . 5 . . 1 . . . . . . . . 1 . . . . . 1 . . Botnet 8 | . 5 . . 1 . . . . . . . . 1 . . . . . 1 . . Fabricators . | . . . . . . . . . . . . . . . . . . . . . . Repair Stations . | . . . . . . . . . . . . . . . . . . . . . . Recycling Units . | . . . . . . . . . . . . . . . . . . . . . . Scanalyzers . | . . . . . . . . . . . . . . . . . . . . . . Garrison Access . | . . . . . . . . . . . . . . . . . . . . . . Data Cores Recovered . | . . . . . . . . . . . . . . . . . . . . . . Used . | . . . . . . . . . . . . . . . . . . . . . . Hacking Detections 37 | . 6 . . 5 4 1 2 1 . . . . 1 . . . . 2 3 9 3 Full Trace Events 4 | . . . . 1 . . . . . . . . . . . . . . 1 1 1 Feedback Events . | . . . . . . . . . . . . . . . . . . . . . . Feedback Blocked 1 | . . . . . . . . . . . . . . . . . . . . . 1 Robot Schematics Acquired . | . . . . . . . . . . . . . . . . . . . . . . Robots Built . | . . . . . . . . . . . . . . . . . . . . . . Authchips . | . . . . . . . . . . . . . . . . . . . . . . Time . | . . . . . . . . . . . . . . . . . . . . . . Total Robot Build Rating . | . . . . . . . . . . . . . . . . . . . . . . Part Schematics Acquired 6 | . . . . . 2 . . . . . 4 . . . . . . . . . . Parts Built . | . . . . . . . . . . . . . . . . . . . . . . Authchips . | . . . . . . . . . . . . . . . . . . . . . . Time . | . . . . . . . . . . . . . . . . . . . . . . Total Part Build Rating . | . . . . . . . . . . . . . . . . . . . . . . Parts Repaired . | . . . . . . . . . . . . . . . . . . . . . . Time . | . . . . . . . . . . . . . . . . . . . . . . Parts Recycled . | . . . . . . . . . . . . . . . . . . . . . . Recycled Matter . | . . . . . . . . . . . . . . . . . . . . . . Retrieved Matter . | . . . . . . . . . . . . . . . . . . . . . . Retrieved Components 2 | . . . . 2 . . . . . . . . . . . . . . . . . Parts Scanalyzed 2 | . . . . . 2 . . . . . . . . . . . . . . . . Part Schematics Acquired 2 | . . . . . 2 . . . . . . . . . . . . . . . . Parts Damaged . | . . . . . . . . . . . . . . . . . . . . . . Bothacking | -11 -10 -10 -9 -9 -8 -7 -6 -5 -5 -5 -5 -4 -4 -4 -4 -4 -3 -3 -2 -2 -1 ------------ Run | Yrd Mat Min Mat Sto Mat Fac Fac Fac Upp Upp Zhi Pro Fac Upp Upp War Pro Res Res Qua Acc Used RIF Installer . | . . . . . . . . . . . . . . . . . . . . . . Robots Hacked . | . . . . . . . . . . . . . . . . . . . . . . Non-combat . | . . . . . . . . . . . . . . . . . . . . . . Combat . | . . . . . . . . . . . . . . . . . . . . . . Robot Hacks Applied . | . . . . . . . . . . . . . . . . . . . . . . Relay Couplers Released . | . . . . . . . . . . . . . . . . . . . . . . Fabnet Peak Effective % . | . . . . . . . . . . . . . . . . . . . . . . Robots Rewired 5 | . . . . . . . . . . . . . . 4 1 . . . . . . Allies Hacked 1 | . . . . . . . . . . . . . . . 1 . . . . . . Hacks Repelled . | . . . . . . . . . . . . . . . . . . . . . . Allies | -11 -10 -10 -9 -9 -8 -7 -6 -5 -5 -5 -5 -4 -4 -4 -4 -4 -3 -3 -2 -2 -1 -------- Run | Yrd Mat Min Mat Sto Mat Fac Fac Fac Upp Upp Zhi Pro Fac Upp Upp War Pro Res Res Qua Acc Total Allies 23 | . . 1 . 10 . . . . . . . . . 4 1 . . . . . 7 Largest Group 10 | . . 1 . 10 . . . . . . . . . 4 3 . . . . . 6 Highest-Rated Group 131 | . . 31 . 88 . . . . . . . . . 131 87 . . . . . 83 Highest-Rated Ally 44 | . . 31 . 16 . . . . . . . . . 44 30 . . . . . 15 Total Orders . | . . . . . . . . . . . . . . . . . . . . . . Ally Attacks 126 | . . 11 . 89 . . . . . . . . . . 13 . . . . . 13 Total Damage 1720 | . . 147 . 888 . . . . . . . . . . 430 . . . . . 255 Kills 18 | . . 3 . 14 . . . . . . . . . . 1 . . . . . . Allies Corrupted 3 | . . . . . . . . . . . . . . . 3 . . . . . . Allies Melted . | . . . . . . . . . . . . . . . . . . . . . . Intel | -11 -10 -10 -9 -9 -8 -7 -6 -5 -5 -5 -5 -4 -4 -4 -4 -4 -3 -3 -2 -2 -1 ------- Run | Yrd Mat Min Mat Sto Mat Fac Fac Fac Upp Upp Zhi Pro Fac Upp Upp War Pro Res Res Qua Acc Robot Analysis Total 6 | . 2 . . . . . . . . . 4 . . . . . . . . . . Derelict Logs Recovered 6 | . . 1 . . . . . . 1 2 . 2 . . . . . . . . . Drone Launches . | . . . . . . . . . . . . . . . . . . . . . . Drone Recoveries . | . . . . . . . . . . . . . . . . . . . . . . Exploration | -11 -10 -10 -9 -9 -8 -7 -6 -5 -5 -5 -5 -4 -4 -4 -4 -4 -3 -3 -2 -2 -1 ------------- Run | Yrd Mat Min Mat Sto Mat Fac Fac Fac Upp Upp Zhi Pro Fac Upp Upp War Pro Res Res Qua Acc Turns Passed 12571 | 88 798 191 429 569 890 958 851 683 678 635 323 515 531 491 531 691 567 1286 255 216 395 Spaces Moved 9108 | 69 637 122 207 281 450 533 519 301 436 462 212 331 280 302 304 318 178 657 839 825 845 Core 124 | 1 . . . . . . . . . . . . . . . . . 101 . . 22 Treads 5 | . . . . . . . . . . . . . . . . 2 . 3 . . . Legs 250 | . . . . . . . . . . . . . . . . . . 250 . . . Wheels 6077 | 68 637 122 207 281 450 533 519 301 436 462 212 331 280 302 304 316 178 138 . . . Hover . | . . . . . . . . . . . . . . . . . . . . . . Flight 2652 | . . . . . . . . . . . . . . . . . . 165 839 825 823 Fastest Speed 18 | 50 80 105 105 135 135 150 150 120 135 135 135 135 135 138 138 138 270 39 18 18 22 Average Speed 109 | 79 101 109 126 135 146 150 150 135 135 135 135 135 136 138 138 164 277 149 23 18 38 Slowest Speed 480 | 80 110 120 135 135 150 150 150 165 135 135 135 135 150 138 153 480 285 465 45 22 150 Overloaded Moves . | . . . . . . . . . . . . . . . . . . . . . . Propulsion Burnouts . | . . . . . . . . . . . . . . . . . . . . . . Robots Hopped 74 | . . . . . . . . . . . . . . . . . . 4 24 26 20 Cave-ins Triggered 1 | . . . . . . . . . . . . . . . . . . . . 1 . Teleports 5 | . . . . . . . . . . . 1 . . . . . . . . 1 3 Exploration Rate (%) 37 | 5 76 34 14 64 34 17 12 6 61 59 62 69 7 44 42 30 34 21 29 75 23 Regions Visited 21 Branch Regions 11 Pre-discovered Areas 3 | . . . . . . . . . . . 3 . . . . . . . . . . Known Exits Taken 11 | . 1 1 . . . . 1 1 1 1 1 1 . . . . . 1 1 1 . Unknown Exits Taken 10 | 1 . . 1 1 1 1 . . . . . . 1 1 1 1 1 . . . . Scrap Searched 16 | . . 1 . . . . . . 2 2 . . . 4 4 . 3 . . . . Spaces Dug 31 | . 2 . . . 6 . . . . . . 7 . . . . 1 6 2 5 2 Terrain Destroyed 430 | . 2 18 13 3 36 . 118 . 50 22 . 11 5 . 29 69 2 43 2 5 2 Melee 23 | . . . . . . . . . . . . 7 . . . . 1 6 2 5 2 Projectile 38 | . 2 . . . . . . . 1 . . 4 5 . 10 5 1 10 . . . AOE 369 | . . 18 13 3 36 . 118 . 49 22 . . . . 19 64 . 27 . . . Terrain Rammed . | . . . . . . . . . . . . . . . . . . . . . . Walls Destroyed . | . . . . . . . . . . . . . . . . . . . . . . Machines Disabled . | . . . . . . . . . . . . . . . . . . . . . . Actions | -11 -10 -10 -9 -9 -8 -7 -6 -5 -5 -5 -5 -4 -4 -4 -4 -4 -3 -3 -2 -2 -1 --------- Run | Yrd Mat Min Mat Sto Mat Fac Fac Fac Upp Upp Zhi Pro Fac Upp Upp War Pro Res Res Qua Acc Total 10912 | 94 737 154 323 424 600 652 586 550 488 470 249 375 403 371 361 435 226 814 862 851 887 Wait 747 | 2 43 7 44 74 50 46 32 202 13 3 1 25 68 22 10 30 22 18 2 3 30 Move 8952 | 68 636 121 206 280 449 532 518 300 435 461 211 330 279 301 303 317 177 648 799 773 808 Hop 61 | . . . . . . . . . . . . . . . . . . 4 15 25 17 Pick Up 190 | 11 15 5 15 10 13 10 11 5 6 1 6 . 12 3 4 17 2 19 11 11 3 Fast Attach 105 | 5 2 . 5 6 6 3 1 14 . . 10 . 2 . 2 10 . 12 12 7 8 Attach 92 | 2 3 5 3 . 2 2 6 2 2 . 1 . 3 . 3 16 6 22 5 5 4 Detach 22 | . . . 2 . 2 1 . . . . 1 . . . . 2 . 5 5 2 2 Swap 141 | . 6 4 6 3 14 10 5 8 10 3 3 8 14 9 9 11 8 10 . . . Drop 180 | 3 8 . 15 15 23 15 8 8 5 1 15 . 12 4 3 8 1 7 5 14 10 Fire 333 | 3 24 12 27 26 41 25 5 11 17 1 . 5 13 1 23 24 9 63 . . 3 Melee 37 | . . . . . . . . . . . 1 7 . 1 . . 1 6 8 11 2 Ram 1 | . . . . 1 . . . . . . . . . . . . . . . . . Kick . | . . . . . . . . . . . . . . . . . . . . . . Crush . | . . . . . . . . . . . . . . . . . . . . . . Escape Stasis 16 | . . . . 8 . 8 . . . . . . . . . . . . . . . Rewire 35 | . . . . 1 . . . . . . . . . 30 4 . . . . . . Trap . | . . . . . . . . . . . . . . . . . . . . . . Miscellaneous . | . . . . . . . . . . . . . . . . . . . . . . Route ------- -11/Scrapyard -10/Materials (discovered 5 exits: *Mat x3 / *Min x2) -10/Mines -9/Materials -9/Storage (discovered 2 exits: *Mat / Rec) -8/Materials -7/Factory -6/Factory -5/Factory (discovered 2 exits: *Fac / *Upp) -5/Upper Caves -5/Upper Caves (discovered 2 exits: *Fac / *Zhi) -5/Zhirov -4/Proximity Caves -4/Factory -4/Upper Caves -4/Upper Caves -4/Warlord -3/Proximity Caves -3/Research (discovered 2 exits: *Res x2) -2/Research -2/Quarantine -1/Access History --------- Turn | Location | Event 26 | -11/Scrapyard | Discovered new exit (range 16) 89 | -11/Scrapyard | Entered Materials 151 | -10/Materials | Identified exit to Materials 294 | -10/Materials | Discovered new exit (range 8) 305 | -10/Materials | Build established: Mutant 391 | -10/Materials | Discovered new exit (range 12) 393 | -10/Materials | Identified exit to Mines 887 | -10/Materials | Entered Mines 888 | -10/Mines | Assembled infested the area 890 | -10/Mines | Received a Mining Laser from a helpful Derelict 935 | -10/Mines | Core integrity fell below 50% 945 | -10/Mines | Core integrity fell below 20% 975 | -10/Mines | Lost 5 parts (1p1n3w) 975 | -10/Mines | Discovered exit to Materials (range 14) 1003 | -10/Mines | Received a Rocket Launcher from a helpful Derelict 1078 | -10/Mines | Entered Materials 1078 | -9/Materials | Evolved 2 slots: Utility x2 1255 | -9/Materials | Discovered new exit (range 3) 1385 | -9/Materials | Build established: Scavenger-Mutant 1507 | -9/Materials | Entered Storage 1508 | -9/Storage | Identified exit to Recycling 1637 | -9/Storage | Assisted by bots powering up and referring to "LRC-V3" 1684 | -9/Storage | Lost 3 allies 1884 | -9/Storage | Lost 3 allies 2038 | -9/Storage | Discovered new exit (range 12) 2076 | -9/Storage | Entered Materials 2076 | -8/Materials | Evolved 2 slots: Utility x1, Weapon x1 2529 | -8/Materials | Build established: Skirmisher 2678 | -8/Materials | Destroyed 8 combat bots 2779 | -8/Materials | Discovered new exit (range 13) 2966 | -8/Materials | Entered Factory 2966 | -7/Factory | Evolved 2 slots: Power x1, Utility x1 3266 | -7/Factory | Build established: Tank 3838 | -7/Factory | Found Prototype Launcher 3838 | -7/Factory | Identified Rocket Array 3854 | -7/Factory | Cargo convoy interrupted 3878 | -7/Factory | Discovered new exit (range 15) 3924 | -7/Factory | Entered another Factory area 3924 | -6/Factory | Evolved 2 slots: Utility x2 4216 | -6/Factory | Build established: Scavenger-Skirmisher 4741 | -6/Factory | Discovered new exit (range 11) 4774 | -6/Factory | Identified exit to Factory 4775 | -6/Factory | Entered another Factory area 4775 | -5/Factory | Evolved 2 slots: Power x1, Propulsion x1 5105 | -5/Factory | Discovered new exit (range 15) 5286 | -5/Factory | Build established: Skirmisher 5447 | -5/Factory | Discovered new exit (range 9) 5455 | -5/Factory | Identified exit to Upper Caves 5458 | -5/Factory | Entered Upper Caves 5557 | -5/Upper Caves | Identified exit to Upper Caves 5868 | -5/Upper Caves | Attracted the attention of an 0b10 checkpoint 6136 | -5/Upper Caves | Entered another Upper Caves area 6182 | -5/Upper Caves | Discovered new exit (range 12) 6566 | -5/Upper Caves | Learned Factory garrison access intel 6629 | -5/Upper Caves | Learned Factory interactive machine intel 6764 | -5/Upper Caves | Discovered new exit (range 6) 6769 | -5/Upper Caves | Identified exit to Zhirov 6771 | -5/Upper Caves | Entered Zhirov 6771 | -5/Zhirov | Discovered new exit (range 3) 6797 | -5/Zhirov | Met Zhirov 6836 | -5/Zhirov | Learned location of Quarantine (-2) 6836 | -5/Zhirov | Learned location of Testing (-3) 6836 | -5/Zhirov | Learned location of Command (-1) 6850 | -5/Zhirov | Zhirov requested help retrieving the SGEMP Prototype 6871 | -5/Zhirov | Found Alien Artifact 6871 | -5/Zhirov | Identified Transdimensional Reconstructor 6871 | -5/Zhirov | Warped through subspace 6871 | -5/Zhirov | Identified exit to Proximity Caves 6938 | -5/Zhirov | Found Alien Artifact 6938 | -5/Zhirov | Identified Integrated Dissipator 6938 | -5/Zhirov | Installed Integrated Dissipator, increased core heat dissipation (+20) 7094 | -5/Zhirov | Entered Proximity Caves 7370 | -4/Proximity Caves | Identified exit to Factory 7578 | -4/Proximity Caves | Learned 4 Research zone layouts 7582 | -4/Proximity Caves | Spotted B-86 Titan 7609 | -4/Proximity Caves | Entered Factory 7609 | -4/Factory | Evolved 2 slots: Utility x2 7610 | -4/Factory | Loaded intel: 52 interactive machine locations 7611 | -4/Factory | Loaded intel: 4 garrison access locations 8067 | -4/Factory | Discovered new exit (range 6) 8140 | -4/Factory | Entered Upper Caves 8473 | -4/Upper Caves | Discovered new exit (range 10) 8526 | -4/Upper Caves | Attacked by a delusional Derelict stockpiling Unaware 8631 | -4/Upper Caves | Entered another Upper Caves area 8631 | -4/Upper Caves | Accompanied by 4 allies 8686 | -4/Upper Caves | Lost 3 allies 8769 | -4/Upper Caves | Attracted the attention of an 0b10 outpost 8868 | -4/Upper Caves | Destroyed 12 combat bots 9076 | -4/Upper Caves | Discovered new exit (range 15) 9162 | -4/Upper Caves | Entered Warlord 9208 | -4/Warlord | System corruption cleaned by Quarantine Array 9336 | -4/Warlord | Met Warlord 9361 | -4/Warlord | Warlord's base attacked by MAIN.C 9594 | -4/Warlord | Warlord forces counterattacked 9629 | -4/Warlord | Destroyed 7 combat bots 9646 | -4/Warlord | Lost 10 allies 9662 | -4/Warlord | Lost 12 parts (3n8u1w) 9742 | -4/Warlord | Discovered new exit (range 14) 9743 | -4/Warlord | Lost 5 allies 9765 | -4/Warlord | P-70 Sage assimilated allied VJ-5T8(g) 9792 | -4/Warlord | System corruption reached 10% 9814 | -4/Warlord | Lost 4 allies 9853 | -4/Warlord | Entered Proximity Caves 9988 | -3/Proximity Caves | Build established: Scavenger-Tank 10201 | -3/Proximity Caves | Lost 4 parts (1p1n2u) 10308 | -3/Proximity Caves | Discovered new exit (range 11) 10419 | -3/Proximity Caves | System corruption reached 30% 10420 | -3/Proximity Caves | Entered Research 10420 | -3/Research | Evolved 2 slots: Propulsion x2 10876 | -3/Research | Lost 5 parts (1p1n2u1w) 10939 | -3/Research | Lost 6 parts (2p1n1u2w) 11178 | -3/Research | Build established: Scavenger-Gunner 11555 | -3/Research | Released all parts (20) 11584 | -3/Research | Lost 6 parts (1p2n1u2w) 11606 | -3/Research | Spotted B-86 Titan 11613 | -3/Research | System corruption reached 10% 11646 | -3/Research | Spotted B-86 Titan 11664 | -3/Research | Core integrity fell below 50% 11669 | -3/Research | Spotted B-86 Titan 11702 | -3/Research | Discovered new exit (range 10) 11706 | -3/Research | Identified exit to Research 11706 | -3/Research | Discovered exit to Research (range 10) 11706 | -3/Research | Entered another Research area 11706 | -2/Research | Warlord forces began assault on 0b10 11706 | -2/Research | Evolved 2 slots: Propulsion x2 11745 | -2/Research | Spotted B-90 Cyclops 11811 | -2/Research | Found Prototype Device 11811 | -2/Research | Identified Exp. Thermal Shield 11816 | -2/Research | Research machine network offline 11907 | -2/Research | Met up with Warlord 11949 | -2/Research | Discovered new exit (range 11) 11950 | -2/Research | Identified exit to Quarantine 11961 | -2/Research | Entered Quarantine 11961 | -2/Quarantine | Spotted Alpha 7 11986 | -2/Quarantine | Found Alien Artifact 11986 | -2/Quarantine | Identified Phase Armor 12006 | -2/Quarantine | Found Alien Artifact 12006 | -2/Quarantine | Identified Phase Redirector 12017 | -2/Quarantine | Found Alien Artifact 12057 | -2/Quarantine | Found Alien Artifact 12057 | -2/Quarantine | Identified Core Reset Matrix 12057 | -2/Quarantine | Identified Subatomic Replicator 12057 | -2/Quarantine | Used Core Reset Matrix 12061 | -2/Quarantine | Detected hypermatrix surge 12061 | -2/Quarantine | Sensed 12 artifacts in vicinity 12078 | -2/Quarantine | Build established: Sprinter 12093 | -2/Quarantine | Found Transdimensional Reconstructor 12095 | -2/Quarantine | Found Transdimensional Reconstructor 12097 | -2/Quarantine | Found Hpw. Transdimensional Reconstructor 12099 | -2/Quarantine | Found Transdimensional Reconstructor 12107 | -2/Quarantine | Found Terrabomb 12139 | -2/Quarantine | Discovered new exit (range 10) 12151 | -2/Quarantine | Crushed by falling debris 12161 | -2/Quarantine | Used Terrabomb 12162 | -2/Quarantine | Met incapacitated Sigix Warrior 12162 | -2/Quarantine | Lockdown squad dispatched 12163 | -2/Quarantine | Acquired the access code to the Sigix quarantine chamber 12163 | -2/Quarantine | Unlocked Sigix quarantine chamber 12164 | -2/Quarantine | Used Subatomic Replicator to replicate Sigix Containment Pod 12168 | -2/Quarantine | Warped through subspace 12177 | -2/Quarantine | Identified exit to Access 12177 | -2/Quarantine | Entered Access 12177 | -1/Access | Evolved 2 slots: Propulsion x2 12186 | -1/Access | Lost 4 parts (2n1u1w) 12321 | -1/Access | Spotted B-99 Colossus 12322 | -1/Access | Spotted B-99 Colossus 12331 | -1/Access | Warped through subspace 12361 | -1/Access | Lost 7 parts (1p3n3u) 12362 | -1/Access | Warped through subspace 12453 | -1/Access | Warped through subspace 12455 | -1/Access | Search patrols dispatched 12516 | -1/Access | Found Unknown Piercing Weapon 12516 | -1/Access | Identified Enh. Force Lance 12555 | -1/Access | Core integrity fell below 50% 12558 | -1/Access | Emitted hypermatrix ping 12562 | -1/Access | Core integrity fell below 20% 12563 | -1/Access | Assembled emerged from beneath the floor 12572 | -1/Access | Destroyed by B-99 Colossus with Linear Accelerator Last Messages --------------- 12564_ Slug penetrates Wall. 12564_ Acquired 6 matter. 12565_ as-97068 knocked back. 12565_ as-87042 destroyed. 12565_ as-97068 destroyed. 12566_ Acquired 4 matter. 12567_ Acquired Enh. Force Lance. 12568_ as-71850 destroyed. 12568_ as-92759 destroyed. 12568_ Slug penetrates Wall. 12568_ as-41645 destroyed. 12568_ Slug penetrates as-46120. 12568_ as-46120 destroyed. 12568_ Slug penetrates Wall. 12570_ R-10 Processor collects Unknown Processor. 12571_ Penetrated by Slug. 12571_ Slug penetrates B-99 Colossus. 12571_ Penetrated by Slug. 12571_ Adv. Signal Interpreter destroyed. 12571_ Slug penetrates Reinforced Barrier. Map ----- +----------------------------------------------------+ | ???# # [ !#????????????# # #? | | ???# # ##???????????######### #? | | ???# # # #########??????????# #? | | ???# # ! # ! #??????????# #? | | ???# # ! #??????????# #? | | ???+ # #??????????# #? | | ???# #??????????# #? | | ???# ###### # #??????????# #? | | ???# ?????# # #??????????# #? | | ???# ?????# # #??????????# #? | | ???#??????# # % #??????????# #? | | ??????????# #### ###;#####+################ ## | | ??????????# #??# #R %! | | ??????????# #????????# = | | ??????????# #????????#%%%% ^ | | ??????????# #????????# %% ^ | | ??????????# #????????# %! ##########+######+##### | | ??????????# #????????# *%=####?# | | ??????????# #?????#### %;;;#?# # | | ??????????# #?????# % #?# " #!= """ | | ??????????# #?????# % #?# """ #!! """ | | ???######## #?????# % #?# """ # | | + #?????# #?# " # | | # #?????# BB BB ###! ######## | | [[ ??# #?????# BB BB ## #??????? | | [[ ????# #?????# %@ #############??????? | | ??????# #?????#"""""" """#??????????????????? | | ????????# #???????????? "?????????????????????? | | ??????????# #???????????? "?????????????????????? | | ??????????# #????????????""?????????????????????? | | ??????????# #???????????????????????????????????? | | ??????????# #???????????????????????????????????? | | ??????????# #???????????????????????????????????? | | ??????????# #???????????????????????????????????? | | ??????????# #???????????????????????????????????? | | ??????????# #???????????????????????????????????? | | ????####### #???????????????????????????????????? | | #???????????????????????????????????? | | ????####### #???????????????????????????????????? | | ??????????# #?????""""""""""""??????????????????? | | ??????????# #?????#"" #??????????????????? | | ??????????# #?????#"" #??????????????????? | | ??????????# #?????#"" #??????????????????? | | ??????????# #?????#T #??????????????????? | | ??????????# #?????#"" #??????????????????? | | ??????????# #?????#"" #??????????????????? | | ??????????# #######"" ###????????????????? | | ??????????# ???????????? | | ??????????# ???????????? | | ??????????####+######################????????????? | +----------------------------------------------------+ Best States ------------- Heat Dissipation 94 Energy Generation 55 Energy Capacity 615 Matter Stores 300 Matter Capacity 300 Sight Range 16 Robot Scan Range 16 Terrain Scan Range 16 Terrain Scan Density 210 Additional Mass Support 12 Armor Coverage 900 Resistance: TH 30 Resistance: EM 20 Core Shielding 40 Propulsion Shielding 33 Weapon Cycling 20 Phase Shifting 10 Evasion (%) 88 Targeting Accuracy 14 Target Analysis 12 Recoil Reduction 2 Matter Filtering 50 Offensive Hacking 14 Defensive Hacking 10 Item Schematics ----------------- None Robot Schematics ------------------ None Fabricated ------------ Nothing Alien Tech Used ----------------- Transdimensional Reconstructor Integrated Dissipator Phase Armor Phase Redirector Core Reset Matrix Terrabomb Subatomic Replicator High-powered Transdimensional Reconstructor Achievements -------------- None Challenges ------------ None Game ------ Seed TerrainDefenseGenerator Manual? 0 Play Time 02:23:26 Cumulative 19.2 hours Start 2024.04.02 @ 22:56:02 End 2024.04.03 @ 23:30:53 Sessions 2 Manual Loads 0 Difficulty Rogue Special Mode None Game No. 11 Rogue 11 Adventurer 0 Explorer 0 Win Type - Total 1 Types 1/0/0/0/0/0/0/0/0 Lore% 20 Gallery% 30 Achievement% 70 Wizard Run 0 Options --------- Layout 0 ASCII 1 Keyboard 0 Movement Numpad Keybinds 0 Fullscreen 2 Font 18/X11 Map View 76x50 Zoom Use 0% Tactical HUD 1 Map Filters NONE Filters NONE Steam 1 RUN: 4ff4f402-cd49-4d23-bec1-f3cabe76983a